bitfinex/quotes_SOLUSD_20250601
["timestamp","ask_amount","ask_price","bid_price","bid_amount"]
[1748757529573,15.74875244,155.44,155.4,9.31508873]
[1748757532992,6.43366371,155.44,155.4,9.31508873]
[1748757534075,6.43366371,155.44,155.41,9.31508873]
[1748757536804,6.43366371,155.44,155.4,9.31508873]
[1748757536805,15.74875244,155.44,155.4,9.31508873]
[1748757541000,9.31508873,155.42,155.36,26.0]
[1748757541202,9.31508873,155.41,155.36,35.31508873]
[1748757542103,15.74978825,155.41,155.36,41.75150893]
[1748757542490,15.74978825,155.41,155.37,9.31508873]
[1748757542692,6.43469952,155.41,155.37,9.31508873]
[1748757544416,9.31508873,155.42,155.37,9.31508873]
[1748757544595,15.74941168,155.42,155.38,9.31508873]
[1748757549290,15.74902009,155.43,155.38,15.75092201]
[1748757549490,15.74902009,155.43,155.38,17.36432201]
[1748757549703,15.74902009,155.43,155.39,9.31508873]
[1748757549904,54.62857906,155.44,155.4,9.31508873]
[1748757550082,9.31508873,155.44,155.4,9.31508873]
[1748757550288,64.54818113,155.45,155.4,9.31508873]
[1748757551390,64.54818113,155.45,155.4,15.75009069]
[1748757553794,19.23508873,155.45,155.41,9.31508873]
[1748757554110,9.92,155.45,155.41,9.31508873]
[1748757556022,19.23508873,155.45,155.41,9.31508873]
[1748757556209,16.35004115,155.52,155.44,9.31508873]
[1748757556411,9.31508873,155.46,155.42,9.31508873]
[1748757556618,9.31508873,155.46,155.41,9.31508873]
[1748757557208,15.74767001,155.46,155.41,9.31508873]
[1748757557535,9.31508873,155.45,155.41,15.74959968]
[1748757560429,54.62767001,155.46,155.41,15.74959968]
[1748757560927,48.19508873,155.46,155.41,15.74959968]
[1748757561103,48.19508873,155.46,155.42,9.31508873]
[1748757565538,48.19508873,155.46,155.42,15.74925317]
[1748757570427,48.19508873,155.46,155.42,9.31508873]
[1748757570629,48.19508873,155.46,155.41,15.74956888]
[1748757571638,48.19508873,155.46,155.42,9.31508873]
[1748757575344,48.19508873,155.46,155.41,15.74956888]
[1748757578045,54.62763553,155.46,155.41,15.74956888]
[1748757578644,9.31508873,155.45,155.4,26.0]
[1748757578828,45.3125468,155.46,155.4,26.0]
[1748757578829,9.31508873,155.43,155.4,26.0]
[1748757579030,9.31508873,155.43,155.39,1.6134]
[1748757580153,15.74903098,155.43,155.39,1.6134]
[1748757580447,15.74903098,155.43,155.38,41.7508805]
[1748757582071,15.74903098,155.43,155.39,9.31508873]
[1748757591559,15.74903098,155.43,155.38,41.7508805]
[1748757591560,38.88,155.42,155.38,41.7508805]
[1748757594139,38.88,155.42,155.39,9.31508873]
[1748757594343,38.88,155.42,155.39,15.75049806]
[1748757600445,38.88,155.42,155.39,9.31508873]
[1748757600756,9.31508873,155.41,155.37,15.75123618]
[1748757601968,54.6293214,155.42,155.37,15.75123618]
[1748757602359,54.6293214,155.42,155.35,18.64964886]
[1748757602360,9.31508873,155.39,155.35,9.31508873]
[1748757602566,9.31508873,155.39,155.34,41.75250986]
[1748757602869,9.31508873,155.4,155.36,9.31508873]
[1748757603252,54.6293214,155.42,155.38,9.31508873]
[1748757603577,0.28432314,155.44,155.4,9.31508873]
[1748757603578,15.74860749,155.44,155.4,9.31508873]
[1748757603949,54.62860749,155.44,155.4,9.31508873]
[1748757604150,45.31351876,155.44,155.4,9.31508873]
[1748757604850,38.88,155.44,155.4,15.75005843]
[1748757605354,25.6681037,155.45,155.42,9.31508873]
[1748757605355,9.92,155.45,155.42,9.31508873]
[1748757605655,48.8,155.45,155.42,9.31508873]
[1748757605868,9.92,155.45,155.42,9.31508873]
[1748757606754,11.02627986,155.46,155.42,9.31508873]
[1748757606755,4.59361305,155.46,155.44,9.31508873]
[1748757607158,4.59361305,155.46,155.43,9.31508873]
[1748757607366,11.02630289,155.46,155.42,9.31508873]
[1748757607562,20.34139162,155.46,155.42,9.31508873]
[1748757607954,15.74777857,155.46,155.42,9.31508873]
[1748757608348,15.74733887,155.47,155.42,9.31508873]
[1748757608550,54.62733887,155.47,155.42,9.31508873]
[1748757608873,54.62733887,155.47,155.43,9.31508873]
[1748757609773,45.31225014,155.47,155.43,9.31508873]
[1748757611359,54.62733887,155.47,155.43,9.31508873]
[1748757612564,15.74777932,155.46,155.42,9.31508873]
[1748757615182,9.31508873,155.43,155.39,9.31508873]
[1748757615857,9.31508873,155.43,155.38,9.31508873]
[1748757616972,54.62926169,155.43,155.38,9.31508873]
[1748757617171,9.31508873,155.42,155.38,9.31508873]
[1748757617773,9.31508873,155.42,155.37,35.31508873]
[1748757618574,9.31508873,155.41,155.36,9.31508873]
[1748757618780,9.31508873,155.4,155.36,9.31508873]
[1748757619698,15.75038831,155.4,155.36,9.31508873]
[1748757620197,6.43529958,155.4,155.36,9.31508873]
[1748757620367,15.74980479,155.41,155.36,9.31508873]
[1748757620696,21.0081599,155.41,155.36,14.57344384]
[1748757621465,21.0081599,155.41,155.37,14.57344384]
[1748757621466,14.57344384,155.41,155.37,14.57344384]
[1748757621666,59.88729662,155.43,155.39,14.57344384]
[1748757621968,59.90729662,155.43,155.39,14.57344384]
[1748757622566,14.57344384,155.42,155.38,14.57344384]
[1748757622767,14.57344384,155.4,155.36,14.57344384]
[1748757623798,21.00871418,155.4,155.36,14.57344384]
[1748757624777,14.57344384,155.4,155.36,14.57344384]
[1748757625468,14.57344384,155.4,155.35,14.57344384]
[1748757626211,6.43542055,155.39,155.35,14.57344384]
[1748757626768,21.008556,155.4,155.36,14.57344384]
[1748757630497,14.57344384,155.39,155.35,14.57344384]
[1748757630880,14.57344384,155.39,155.34,40.57344384]
[1748757631086,53.47344384,155.39,155.34,40.57344384]
[1748757631705,14.57344384,155.38,155.34,40.57344384]
[1748757631873,53.47344384,155.39,155.34,40.57344384]
[1748757632189,53.47344384,155.39,155.35,14.57344384]
[1748757632997,59.90901318,155.39,155.35,14.57344384]
[1748757633478,45.33556934,155.39,155.36,14.57344384]
[1748757633893,38.9,155.39,155.36,14.57344384]
[1748757634112,45.33545459,155.39,155.36,14.57344384]
[1748757634691,38.9,155.39,155.37,14.57344384]
[1748757635907,38.9,155.39,155.35,6.43693004]
[1748757635908,38.9,155.39,155.36,14.57344384]
[1748757640815,38.9,155.39,155.36,9.32723517]
[1748757643590,9.32723517,155.4,155.36,15.76384875]
[1748757643893,16.37474384,155.41,155.39,9.32723517]
[1748757643894,9.94,155.41,155.39,9.32723517]
[1748757644891,9.94,155.41,155.38,9.32723517]
[1748757645080,9.94,155.41,155.37,9.32723517]
[1748757645708,15.76144764,155.42,155.37,9.32723517]
[1748757646529,9.32723517,155.4,155.36,9.32723517]
[1748757646889,9.32723517,155.4,155.35,15.76416925]
[1748757647693,9.32723517,155.4,155.36,9.32723517]
[1748757648396,15.76225212,155.4,155.36,9.32723517]
[1748757649828,15.76199473,155.41,155.36,15.76376299]
[1748757650303,15.76152708,155.42,155.37,9.32723517]
[1748757650508,25.70152708,155.42,155.38,9.32723517]
[1748757652300,25.70152708,155.42,155.37,15.76337595]
[1748757654217,9.32723517,155.41,155.36,15.76378721]
[1748757654398,9.32723517,155.39,155.34,35.32723517]
[1748757656101,15.76280375,155.39,155.34,35.32723517]
[1748757656699,21.01297541,155.39,155.34,40.57740683]
[1748757657816,59.91297541,155.39,155.34,40.57740683]
[1748757658021,14.57740683,155.38,155.34,40.57740683]
[1748757658726,21.01343318,155.38,155.34,40.57740683]
[1748757658939,6.43602635,155.38,155.33,22.70050683]
[1748757659252,14.57740683,155.37,155.33,8.1231]
[1748757660007,14.57740683,155.36,155.33,8.1231]
[1748757660217,14.57740683,155.35,155.33,8.1231]
[1748757660811,14.57740683,155.35,155.29,32.43943091]
[1748757660812,14.57740683,155.34,155.29,32.43943091]
[1748757660996,14.57740683,155.34,155.29,55.10383774]
[1748757661203,14.57740683,155.33,155.29,22.66440683]
[1748757662309,14.57740683,155.33,155.26,14.57740683]
[1748757662310,14.57740683,155.31,155.26,14.57740683]
[1748757663199,6.43805069,155.33,155.26,14.57740683]
[1748757663412,21.01627191,155.31,155.26,14.57740683]
[1748757663615,14.57740683,155.31,155.26,21.01815231]
[1748757664304,14.57740683,155.31,155.27,14.57740683]
[1748757665302,14.57740683,155.32,155.27,14.57740683]
[1748757667727,6.43873543,155.31,155.27,14.57740683]
[1748757667927,6.43873543,155.31,155.25,33.8726]
[1748757667928,14.57740683,155.3,155.25,22.45000683]
[1748757668233,14.57740683,155.28,155.25,7.8726]
[1748757668607,14.57740683,155.29,155.25,22.45000683]
[1748757669426,14.57740683,155.29,155.25,7.8726]
[1748757669803,14.57740683,155.28,155.25,7.8726]
[1748757671817,6.44039415,155.27,155.24,14.57740683]
[1748757672030,21.01780098,155.27,155.23,14.57740683]
[1748757672237,21.01780098,155.27,155.22,14.57740683]
[1748757672238,14.57740683,155.26,155.22,14.57740683]
[1748757673235,14.57740683,155.26,155.21,16.14470683]
[1748757673650,14.57740683,155.25,155.21,16.14470683]
[1748757674147,21.01835603,155.26,155.22,14.57740683]
[1748757674448,9.92,155.27,155.22,14.57740683]
[1748757674449,30.93793259,155.27,155.22,14.57740683]
[1748757674654,24.49740683,155.27,155.23,14.57740683]
[1748757675709,9.92,155.27,155.25,14.57740683]
[1748757676121,9.92,155.27,155.24,21.01873153]
[1748757678015,9.92,155.27,155.24,14.57740683]
[1748757684450,9.92,155.27,155.24,16.09740683]
[1748757687560,9.92,155.27,155.24,1.52]
[1748757687944,9.92,155.27,155.24,16.09740683]
[1748757688264,30.93785547,155.27,155.24,1.52]
[1748757693269,9.92,155.27,155.24,16.09740683]
[1748757694253,6.44039659,155.27,155.24,16.09740683]
[1748757694756,24.51740683,155.29,155.24,16.09740683]
[1748757694931,30.95712738,155.29,155.24,22.53880568]
[1748757695950,9.94,155.29,155.27,14.57740683]
[1748757696439,9.94,155.29,155.26,14.57740683]
[1748757696627,9.94,155.29,155.25,14.57740683]
[1748757696628,24.51740683,155.29,155.25,14.57740683]
[1748757696830,30.95708054,155.29,155.25,14.57740683]
[1748757698049,14.57740683,155.28,155.24,16.09740683]
[1748757700128,21.01766495,155.28,155.24,16.09740683]
[1748757702453,6.44025812,155.28,155.25,14.57740683]
[1748757702634,30.95713321,155.29,155.25,14.57740683]
[1748757703638,21.01713321,155.29,155.25,14.57740683]
[1748757704650,21.01713321,155.29,155.24,16.09740683]
[1748757704955,21.01713321,155.29,155.24,14.57740683]
[1748757707161,21.01713321,155.29,155.24,16.16480683]
[1748757707541,21.01713321,155.29,155.24,22.58060683]
[1748757707938,21.01713321,155.29,155.25,14.57740683]
[1748757708753,15.78089142,155.29,155.25,9.34116504]
[1748757710355,9.34116504,155.28,155.24,17.34436504]
[1748757710558,9.34116504,155.27,155.24,8.0032]
[1748757711664,15.78174209,155.27,155.24,8.0032]
[1748757712669,21.04030649,155.27,155.24,8.0032]
[1748757723173,21.04030649,155.27,155.24,1.5874]
[1748757726052,14.59972944,155.25,155.21,14.59972944]
[1748757726560,14.59972944,155.25,155.2,14.59972944]
[1748757726756,14.59972944,155.24,155.19,16.20542944]
[1748757726952,14.59972944,155.23,155.19,16.20542944]
[1748757727188,14.59972944,155.22,155.19,1.6057]
[1748757727347,6.44288383,155.21,155.19,1.6057]
[1748757727767,21.04233953,155.22,155.19,1.6057]
[1748757727969,21.04233953,155.22,155.18,15.10112334]
[1748757728362,6.44261009,155.22,155.19,14.59972944]
[1748757729157,6.44221005,155.23,155.19,14.59972944]
[1748757729671,21.04193949,155.23,155.19,14.59972944]
[1748757730696,14.59972944,155.23,155.19,14.59972944]
[1748757731058,14.59972944,155.23,155.19,16.20482944]
[1748757731591,14.59972944,155.23,155.19,28.88832601]
[1748757731759,24.51972944,155.24,155.2,14.59972944]
[1748757732680,9.92,155.24,155.2,9.34706215]
[1748757733272,9.92,155.24,155.2,15.7902996]
[1748757735358,9.92,155.24,155.21,9.34706215]
[1748757735665,9.92,155.24,155.2,9.34706215]
[1748757736264,9.92,155.24,155.2,15.79023852]
[1748757736776,19.26706215,155.24,155.19,14.28845818]
[1748757737087,16.36164059,155.24,155.21,9.34706215]
[1748757739511,25.70870274,155.24,155.2,9.34706215]
[1748757739714,9.34706215,155.23,155.19,7.8449]
[1748757740881,6.44246875,155.22,155.19,1.6051]
[1748757743876,15.78923171,155.23,155.19,10.95216215]
[1748757744285,6.44216956,155.23,155.19,10.95216215]
[1748757744692,9.92,155.24,155.2,9.34706215]
[1748757745691,9.92,155.24,155.19,8.04850402]
[1748757745692,9.92,155.24,155.21,9.34706215]
[1748757747318,9.94,155.28,155.23,9.34706215]
[1748757747467,9.94,155.28,155.26,9.34706215]
[1748757748179,9.94,155.28,155.25,9.34706215]
[1748757748578,33.89793302,155.3,155.27,9.34706215]
[1748757748779,33.89793302,155.3,155.29,9.34706215]
[1748757749191,16.37673527,155.36,155.29,9.34706215]
[1748757749398,9.94,155.36,155.32,9.34706215]
[1748757750203,9.94,155.36,155.34,9.34706215]
[1748757750502,54.76260151,155.39,155.34,9.34706215]
[1748757750808,59.99311624,155.39,155.34,14.57757688]
[1748757750978,14.57757688,155.38,155.34,14.57757688]
[1748757752300,21.01365398,155.38,155.34,14.57757688]
[1748757753494,6.4360771,155.38,155.34,14.57757688]
[1748757754012,21.01365398,155.38,155.34,14.57757688]
[1748757760599,21.01365398,155.38,155.33,14.57757688]
[1748757763598,21.01365398,155.38,155.34,14.57757688]
[1748757776605,15.76691743,155.38,155.34,9.33084033]
[1748757776914,15.76691743,155.38,155.33,9.33084033]
[1748757780523,15.76691743,155.38,155.3,1.5558]
[1748757780524,9.33084033,155.34,155.3,1.5558]
[1748757780707,9.33084033,155.31,155.28,1.37775439]
[1748757781298,48.84,155.34,155.28,1.37775439]
[1748757781299,9.33084033,155.3,155.28,1.37775439]
[1748757781701,9.33084033,155.31,155.28,1.37775439]
[1748757782518,6.43915003,155.3,155.28,1.37775439]
[1748757783405,21.03148715,155.3,155.28,1.37775439]
[1748757784215,14.59233712,155.29,155.28,1.37775439]
[1748757784621,6.43956468,155.29,155.28,1.37775439]
[1748757785336,0.28432314,155.33,155.28,1.37775439]
[1748757785337,21.030658,155.32,155.28,1.37775439]
[1748757785929,14.59233712,155.31,155.28,1.37775439]
[1748757786708,21.03148715,155.3,155.28,1.37775439]
[1748757787017,14.59233712,155.29,155.28,1.37775439]
[1748757787625,53.53233712,155.29,155.28,1.37775439]
[1748757788812,59.9719018,155.29,155.28,1.37775439]
[1748757789213,70.17622494,155.29,155.28,1.37775439]
[1748757789515,86.27513665,155.29,155.22,40.59233712]
[1748757789726,14.59233712,155.27,155.22,40.59233712]
[1748757790817,6.44080896,155.26,155.22,40.59233712]
[1748757791611,6.44047933,155.27,155.23,14.59233712]
[1748757791807,6.44047933,155.27,155.22,26.0]
[1748757791808,6.44013176,155.28,155.25,14.59233712]
[1748757793532,6.44013176,155.28,155.24,14.59233712]
[1748757794150,21.03246888,155.28,155.24,14.59233712]
[1748757794314,14.59233712,155.27,155.23,14.59233712]
[1748757795135,14.59233712,155.27,155.22,40.59233712]
[1748757796437,6.44080896,155.26,155.22,40.59233712]
[1748757797151,6.44080896,155.26,155.23,6.207]
[1748757797817,6.44080896,155.26,155.23,7.82]
[1748757800723,14.59233712,155.26,155.23,7.82]
[1748757801732,21.03231651,155.28,155.23,22.41233712]
[1748757802063,6.43997939,155.28,155.24,14.59233712]
[1748757802550,21.03231651,155.28,155.23,16.20533712]
[1748757803434,14.59233712,155.27,155.23,16.20533712]
[1748757803838,6.43997939,155.28,155.23,16.20533712]
[1748757804040,21.03303699,155.27,155.23,16.20533712]
[1748757806240,14.59233712,155.27,155.23,16.20533712]
[1748757806443,21.03243935,155.28,155.23,16.20533712]
[1748757807130,21.03243935,155.28,155.24,14.59233712]
[1748757807846,30.95204724,155.29,155.24,14.59233712]
[1748757808052,30.95204724,155.29,155.25,14.59233712]
[1748757808441,9.92,155.29,155.25,14.59233712]
[1748757809622,30.9521476,155.29,155.25,14.59233712]
[1748757809828,14.59233712,155.28,155.24,14.59233712]
[1748757810531,14.59233712,155.27,155.23,14.59233712]
[1748757811533,16.35981048,155.29,155.24,14.59233712]
[1748757811734,14.59233712,155.28,155.24,14.59233712]
[1748757812861,6.44039415,155.27,155.24,14.59233712]
[1748757813056,6.44039415,155.27,155.23,14.59233712]
[1748757813450,21.03273127,155.27,155.23,14.59233712]
[1748757813843,21.03273127,155.27,155.2,7.76004062]
[1748757814150,21.03273127,155.27,155.22,14.59233712]
[1748757814659,6.44039415,155.27,155.23,14.59233712]
[1748757816040,21.03273127,155.27,155.22,14.59233712]
[1748757817053,21.0333636,155.26,155.22,14.59233712]
[1748757817941,6.44102648,155.26,155.22,14.59233712]
[1748757820673,21.0333636,155.26,155.22,14.59233712]
[1748757826661,15.78584633,155.26,155.22,9.34481985]
[1748757828578,6.43997939,155.28,155.22,9.34481985]
[1748757828772,9.34481985,155.27,155.23,9.34481985]
[1748757830163,15.78542861,155.27,155.23,9.34481985]
[1748757831083,9.34481985,155.26,155.22,9.34481985]
[1748757831295,9.34481985,155.25,155.21,9.34481985]
[1748757832391,6.44139812,155.25,155.2,27.31688362]
[1748757832560,6.44139812,155.25,155.21,9.34481985]
[1748757833183,9.34481985,155.24,155.2,1.31688362]
[1748757833390,9.34481985,155.23,155.2,1.31688362]
[1748757833561,6.44139812,155.25,155.2,1.31688362]
[1748757833562,9.34481985,155.24,155.2,10.66170347]
[1748757834464,6.44205372,155.23,155.2,10.66170347]
[1748757834686,6.44205372,155.23,155.2,15.92197125]
[1748757835690,21.04714135,155.23,155.2,1.31688362]
[1748757836878,14.60508763,155.22,155.2,1.31688362]
[1748757837580,14.60508763,155.21,155.2,1.31688362]
[1748757838780,6.44288383,155.21,155.2,1.31688362]
[1748757838975,60.2922946,155.21,155.2,1.31688362]
[1748757839166,0.28432314,155.2,155.18,0.5013939]
[1748757840678,6.44371415,155.19,155.18,0.5013939]
[1748757842371,6.72775115,155.2,155.18,0.5013939]
[1748757842574,14.60508763,155.2,155.18,0.5013939]
[1748757843480,38.96,155.21,155.18,0.5013939]
[1748757843689,45.40297264,155.21,155.18,0.5013939]
[1748757843880,38.96,155.21,155.18,0.5013939]
[1748757845195,21.04769422,155.22,155.18,0.5013939]
[1748757845394,14.60508763,155.21,155.18,0.5013939]
[1748757852289,14.60508763,155.22,155.18,15.10648153]
[1748757853486,21.04774005,155.22,155.18,15.10648153]
[1748757854509,21.04774005,155.22,155.19,6.3256]
[1748757854704,15.79248964,155.22,155.19,6.3256]
[1748757856003,9.34983722,155.21,155.19,6.3256]
[1748757856403,9.34983722,155.21,155.18,0.5013939]
[1748757857407,15.79284777,155.21,155.18,0.5013939]
[1748757858009,9.34983722,155.21,155.18,0.5013939]
[1748757861002,9.34983722,155.2,155.18,0.5013939]
[1748757861320,9.34983722,155.19,155.18,0.5013939]
[1748757862219,15.79355137,155.19,155.18,0.5013939]
[1748757864221,18.93442293,155.19,155.18,0.5013939]
[1748757865909,9.34983722,155.19,155.18,0.5013939]
[1748757866312,15.79355137,155.19,155.18,0.5013939]
[1748757886737,28.90779433,155.2,155.18,0.5013939]
[1748757887113,9.34983722,155.19,155.18,0.5013939]
[1748757888641,15.79355137,155.19,155.18,0.5013939]
[1748757898238,9.34983722,155.19,155.18,0.5013939]
[1748757898944,15.79355137,155.19,155.18,0.5013939]
[1748757911861,6.44371415,155.19,155.18,0.5013939]
[1748757924959,15.79355137,155.19,155.18,0.5013939]
[1748757930469,26.0,155.16,155.07,1.28584814]
[1748757930671,9.34983722,155.13,155.09,9.34983722]
[1748757931058,9.34983722,155.14,155.09,9.34983722]
[1748757931460,9.34983722,155.13,155.09,9.34983722]
[1748757931882,9.34983722,155.13,155.08,15.79799173]
[1748757932380,9.34983722,155.13,155.08,6.44815451]
[1748757932564,9.34983722,155.13,155.09,9.34983722]
[1748757932766,9.34983722,155.13,155.08,15.79799173]
[1748757933479,9.34983722,155.13,155.09,9.34983722]
[1748757935583,9.34983722,155.13,155.09,15.79766066]
[1748757936679,15.79609883,155.13,155.09,9.34983722]
[1748757937471,9.34983722,155.12,155.08,15.79796006]
[1748757938757,9.34983722,155.13,155.09,9.34983722]
[1748757939884,15.79611458,155.13,155.09,9.34983722]
[1748757941801,9.34983722,155.1,155.07,2.79304814]
[1748757941964,6.44627736,155.13,155.07,12.14288536]
[1748757942163,58.24983722,155.15,155.1,9.34983722]
[1748757942486,48.9,155.15,155.1,9.34983722]
[1748757942688,19.28983722,155.15,155.11,9.34983722]
[1748757944069,25.73523882,155.15,155.11,9.34983722]
[1748757944866,25.73523882,155.15,155.1,9.34983722]
[1748757947995,9.34983722,155.14,155.09,9.34983722]
[1748757949196,15.79582912,155.14,155.09,9.34983722]
[1748757952181,15.79606059,155.13,155.09,9.34983722]
[1748757953004,9.34983722,155.12,155.08,34.62928608]
[1748757954184,15.79652916,155.12,155.08,34.62928608]
[1748757954909,15.79652916,155.12,155.07,2.79304814]
[1748757954910,9.34983722,155.1,155.07,2.79304814]
[1748757956196,15.50333815,155.08,155.07,1.28584814]
[1748757956506,9.34983722,155.08,155.04,8.41344923]
[1748757956899,19.28983722,155.1,155.05,10.97503722]
[1748757957695,9.34983722,155.09,155.05,10.97503722]
[1748757958992,15.79772312,155.09,155.05,10.97503722]
[1748757959186,6.4478859,155.09,155.05,1.6252]
[1748757959393,15.79772312,155.09,155.05,10.97503722]
[1748757959907,25.73741166,155.1,155.05,10.97503722]
[1748757960286,9.34983722,155.09,155.05,9.34983722]
[1748757960486,9.34983722,155.09,155.04,17.76328645]
[1748757961608,9.34983722,155.09,155.05,9.34983722]
[1748757962505,15.79771835,155.09,155.05,9.34983722]
[1748757964116,9.94,155.1,155.07,9.34983722]
[1748757964304,19.28983722,155.1,155.06,9.34983722]
[1748757964604,19.28983722,155.1,155.05,25.09911323]
[1748757964808,19.28983722,155.1,155.05,34.44895045]
[1748757964985,25.73733211,155.1,155.05,34.44895045]
[1748757965183,9.34983722,155.09,155.05,9.34983722]
[1748757965384,9.34983722,155.09,155.04,9.34983722]
[1748757965988,6.44828475,155.08,155.04,9.34983722]
[1748757966186,6.44828475,155.08,155.03,27.99948608]
[1748757966187,15.79812197,155.08,155.03,27.99948608]
[1748757966401,9.34983722,155.07,155.03,9.34983722]
[1748757966808,9.34983722,155.07,155.02,41.80050521]
[1748757967186,15.79858941,155.07,155.02,41.80050521]
[1748757968115,9.34983722,155.06,154.98,6.45244547]
[1748757968415,9.34983722,155.06,155.01,9.34983722]
[1748757968830,9.34983722,155.06,155.02,9.34983722]
[1748757970524,15.79910042,155.06,155.02,9.34983722]
[1748757970736,15.79910042,155.06,155.0,32.45138281]
[1748757970920,15.79910042,155.06,155.02,9.34983722]
[1748757972428,9.34983722,155.05,155.0,26.0]
[1748757972630,9.34983722,155.03,154.98,27.99948608]
[1748757972806,9.34983722,155.04,154.99,9.34983722]
[1748757973005,9.34983722,155.04,154.98,18.64964886]
[1748757973006,9.34983722,155.05,155.0,9.34983722]
[1748757973417,15.79965879,155.05,155.0,9.34983722]
[1748757974326,9.34983722,155.02,154.98,9.34983722]
[1748757975209,9.34983722,155.02,154.97,32.45275391]
[1748757975409,9.34983722,155.02,154.98,9.34983722]
[1748757975410,15.800669,155.02,154.98,9.34983722]
[1748757976006,15.80021782,155.03,154.99,9.34983722]
[1748757976205,15.80021782,155.03,154.98,9.34983722]
[1748757977228,9.34983722,155.02,154.98,9.34983722]
[1748757978317,15.80069035,155.02,154.98,9.34983722]
[1748757978722,15.80069035,155.02,154.97,41.80254857]
[1748757979428,15.80069035,155.02,154.96,9.34983722]
[1748757979429,9.34983722,155.01,154.96,9.34983722]
[1748757979641,9.34983722,155.0,154.96,9.34983722]
[1748757979836,9.34983722,155.0,154.95,43.07075358]
[1748757982020,15.80148254,155.0,154.95,43.07075358]
[1748757982219,9.34983722,154.99,154.95,10.61739261]
[1748757982415,9.34983722,155.0,154.95,17.0709085]
[1748757982739,9.34983722,155.0,154.96,9.34983722]
[1748757983523,48.42983722,155.01,154.96,9.34983722]
[1748757983929,54.88109301,155.01,154.96,9.34983722]
[1748757984614,54.88109301,155.01,154.96,15.80297914]
[1748757985539,9.34983722,155.0,154.96,15.80297914]
[1748757985911,9.34983722,155.0,154.96,6.45314192]
[1748757986153,9.34983722,154.99,154.95,17.07093074]
[1748757988825,9.34983722,155.0,154.96,9.34983722]
[1748757989420,9.34983722,155.0,154.95,7.72109352]
[1748757989636,9.34983722,155.0,154.96,9.34983722]
[1748757990173,51.63056164,155.01,154.97,9.34983722]
[1748757990652,51.63056164,155.01,154.96,9.34983722]
[1748757991253,48.42983722,155.01,154.97,9.34983722]
[1748757991578,48.42983722,155.01,154.97,15.80247127]
[1748757991938,9.34983722,155.02,154.98,9.34983722]
[1748757992141,9.34983722,155.03,154.98,9.34983722]
[1748757992946,9.34983722,155.02,154.98,9.34983722]
[1748757993264,9.34983722,155.02,154.98,15.80222995]
[1748757994080,9.34983722,155.02,154.98,9.34983722]
[1748757995857,9.34983722,155.02,154.98,15.80224562]
[1748757996283,9.34983722,155.01,154.97,15.80254621]
[1748757996652,9.34983722,155.01,154.97,6.45270899]
[1748757996992,9.34983722,155.0,154.97,6.45270899]
[1748757997273,9.34983722,155.0,154.96,9.34983722]
[1748757997474,9.34983722,155.0,154.96,15.80305469]
[1748757997662,9.34983722,155.01,154.97,9.34983722]
[1748757997862,9.34983722,155.01,154.96,6.45321747]
[1748757998050,9.34983722,155.01,154.97,9.34983722]
[1748757998447,15.80111,155.01,154.97,9.34983722]
[1748757999760,9.34983722,155.01,154.97,9.34983722]
[1748758000285,9.34983722,155.01,154.97,15.8026846]
[1748758000777,9.34983722,155.02,154.98,9.34983722]
[1748758003064,9.34983722,155.02,154.98,15.80226152]
[1748758004181,9.34983722,155.02,154.98,6.4524243]
[1748758004775,9.34983722,155.02,154.97,15.80252336]
[1748758005664,9.34983722,155.01,154.97,15.80252336]
[1748758006290,9.34983722,155.02,154.98,9.34983722]
[1748758007900,45.50202177,155.04,154.99,9.34983722]
[1748758008069,9.34983722,155.03,154.99,9.34983722]
[1748758009329,12.91211051,155.04,154.99,9.34983722]
[1748758009502,9.34983722,155.03,154.99,9.34983722]
[1748758010005,9.34983722,155.03,154.99,15.80174882]
[1748758014211,9.34983722,155.01,154.96,35.34983722]
[1748758015210,15.80116734,155.01,154.96,41.80302172]
[1748758015523,15.80116734,155.01,154.96,32.4531845]
[1748758015686,15.80116734,155.01,154.95,17.0709612]
[1748758018220,9.34983722,155.0,154.95,7.72112398]
[1748758021018,15.80148325,155.0,154.95,7.72112398]
[1748758021431,15.80148325,155.0,154.95,1.26755539]
[1748758021432,9.34983722,154.99,154.95,1.26755539]
[1748758022925,9.34983722,154.98,154.95,1.26755539]
[1748758023308,9.34983722,154.99,154.95,1.26755539]
[1748758023923,6.45119669,155.01,154.95,1.26755539]
[1748758024134,9.34983722,154.99,154.95,1.26755539]
[1748758024652,9.34983722,155.0,154.95,17.07101669]
[1748758024937,9.34983722,155.0,154.95,23.29441669]
[1748758026437,9.34983722,154.99,154.95,13.94457947]
[1748758026742,6.45116783,155.02,154.95,13.94457947]
[1748758026924,10.26432314,155.03,154.97,9.34983722]
[1748758026925,19.32983722,155.03,154.97,9.34983722]
[1748758027435,9.34983722,155.02,154.97,9.34983722]
[1748758028013,9.34983722,155.02,154.98,6.45244547]
[1748758028442,9.34983722,155.02,154.97,6.4527481]
[1748758028740,15.80066415,155.02,154.97,6.4527481]
[1748758029318,15.80066415,155.02,154.97,15.80258532]
[1748758029534,9.34983722,155.02,154.97,15.80258532]